fUST/lending_fUST_20250627
["ID","MTS","AMOUNT","RATE_DAILY","PERIOD"]
[368025527,1750997937432,-460.0,0.00019178,2]
[368025528,1750997937452,-460.0,0.00019178,2]
[368025529,1750997937472,-460.0,0.00019178,2]
[368025530,1750997937492,-460.0,0.00019178,2]
[368025531,1750997937511,-460.0,0.00019178,2]
[368025532,1750997937535,-542.75,0.00019178,2]
[368025533,1750997937555,-460.0,0.00019178,2]
[368025534,1750997937575,-460.0,0.00019178,2]
[368025535,1750997937595,-460.0,0.00019178,2]
[368025536,1750997937616,-460.0,0.00019178,2]
[368025537,1750997937636,-460.0,0.00019178,2]
[368025538,1750997937660,-462.59059617,0.00019178,2]
[368025539,1750997937680,-460.0,0.00019178,2]
[368025540,1750997937700,-460.0,0.00019178,2]
[368025541,1750997937720,-460.0,0.00019178,2]
[368025542,1750997937741,-460.0,0.00019178,2]
[368025543,1750997937760,-460.0,0.00019178,2]
[368025544,1750997937780,-460.5118512,0.00019178,2]
[368025545,1750997937800,-460.0,0.00019178,2]
[368025546,1750997937820,-460.0,0.00019178,2]
[368025547,1750997937840,-353.05,0.00019178,2]
[368025548,1750997937861,-460.0,0.00019178,2]
[368025549,1750997937881,-460.0,0.00019178,2]
[368025550,1750997937903,-460.0,0.00019178,2]
[368025551,1750997937923,-460.0,0.00019178,2]
[368025552,1750997937943,-460.0,0.00019178,2]
[368025553,1750997937963,-460.0,0.00019178,2]
[368025554,1750997937984,-460.0,0.00019178,2]
[368025555,1750997938004,-667.65,0.00019178,2]
[368025556,1750997938025,-460.0,0.00019178,2]
[368025557,1750997938046,-460.0,0.00019178,2]
[368025558,1750997938067,-460.0,0.00019178,2]
[368025559,1750997938087,-460.0,0.00019178,2]
[368025560,1750997938108,-460.0,0.00019178,2]
[368025561,1750997938130,-500.0,0.00019178,2]
[368025562,1750997938153,-500.0,0.00019178,2]
[368025563,1750997938173,-500.0,0.00019178,2]
[368025564,1750997938194,-460.0,0.00019178,2]
[368025565,1750997938215,-460.0,0.00019178,2]
[368025566,1750997938236,-460.0,0.00019178,2]
[368025567,1750997938256,-460.0,0.00019178,2]
[368025568,1750997938278,-460.0,0.00019178,2]
[368025569,1750997938298,-460.0,0.00019178,2]
[368025570,1750997938320,-463.59820113,0.00019178,2]
[368025571,1750997938342,-460.0,0.00019178,2]
[368025572,1750997938362,-460.0,0.00019178,2]
[368025573,1750997938381,-242.85847513,0.00019178,2]
[368025574,1750997938402,-575.52,0.00019178,2]
[368025575,1750997938422,-440.0,0.00019178,2]
[368025576,1750997938442,-460.0,0.00019178,2]
[368025577,1750997938462,-460.0,0.00019178,2]
[368025578,1750997938482,-405.76469308,0.00019178,2]
[368025579,1750997938502,-460.0,0.00019178,2]
[368025580,1750997938522,-460.0,0.00019178,2]
[368025581,1750997938542,-464.07400799,0.00019178,2]
[368025582,1750997938562,-460.0,0.00019178,2]
[368025583,1750997938583,-460.0,0.00019178,2]
[368025584,1750997938605,-460.0,0.00019178,2]
[368025585,1750997938625,-582.6206452,0.00019178,2]
[368025586,1750997938647,-460.0,0.00019178,2]
[368025587,1750997938668,-460.0,0.00019178,2]
[368025588,1750997938689,-460.0,0.00019178,2]
[368025589,1750997938711,-460.0,0.00019178,2]
[368025590,1750997938732,-460.0,0.00019178,2]
[368025591,1750997938753,-460.0,0.00019178,2]
[368025592,1750997938773,-460.40208519,0.00019178,2]
[368025593,1750997938793,-460.0,0.00019178,2]
[368025594,1750997938813,-490.39937732,0.00019178,2]
[368025595,1750997938833,-460.0,0.00019178,2]
[368025596,1750997938853,-460.0,0.00019178,2]
[368025597,1750997938875,-460.0,0.00019178,2]
[368025598,1750997938896,-460.0,0.00019178,2]
[368025599,1750997938918,-460.0,0.00019178,2]
[368025600,1750997938943,-460.0,0.00019178,2]
[368025601,1750997938964,-460.0,0.00019178,2]
[368025602,1750997938984,-460.0,0.00019178,2]
[368025603,1750997939007,-460.0,0.00019178,2]
[368025604,1750997939029,-460.0,0.00019178,2]
[368025605,1750997939049,-460.0,0.00019178,2]
[368025606,1750997939069,-465.20611654,0.00019178,2]
[368025607,1750997939089,-460.0,0.00019178,2]
[368025608,1750997939111,-1267.4,0.00019178,2]
[368025609,1750997939130,-460.0,0.00019178,2]
[368025610,1750997939153,-463.33409522,0.00019178,2]
[368025611,1750997939174,-460.0,0.00019178,2]
[368025612,1750997939194,-460.0,0.00019178,2]
[368025613,1750997939215,-462.08,0.00019178,2]
[368025614,1750997939234,-460.0,0.00019178,2]
[368025615,1750997939257,-2004.71,0.00019178,2]
[368025616,1750997939279,-460.0,0.00019178,2]
[368025617,1750997939302,-460.0,0.00019178,2]
[368025618,1750997939324,-711.54,0.00019178,2]
[368025619,1750997939344,-467.22,0.00019178,2]
[368025620,1750997939364,-460.0,0.00019178,2]
[368025621,1750997939384,-460.0,0.00019178,2]
[368025622,1750997939405,-674.3,0.00019178,2]
[368025623,1750997939426,-562.22,0.00019178,2]
[368025624,1750997939446,-460.0,0.00019178,2]
[368025625,1750997939466,-460.0,0.00019178,2]
[368025626,1750997939487,-460.0,0.00019178,2]
[368025627,1750997939506,-460.0,0.00019178,2]
[368025628,1750997939526,-460.0,0.00019178,2]
[368025629,1750997939547,-460.0,0.00019178,2]
[368025630,1750997939567,-460.0,0.00019178,2]
[368025631,1750997939590,-1014.58,0.00019178,2]
[368025632,1750997939610,-460.0,0.00019178,2]
[368025633,1750997939630,-460.45259994,0.00019178,2]
[368025634,1750997939650,-460.71189707,0.00019178,2]
[368025635,1750997939671,-460.0,0.00019178,2]
[368025636,1750997939693,-460.0,0.00019178,2]
[368025637,1750997939714,-460.0,0.00019178,2]
[368025638,1750997939734,-460.0,0.00019178,2]
[368025639,1750997939755,-460.0,0.00019178,2]
[368025640,1750997939777,-1824.16,0.00019178,2]
[368025641,1750997939797,-460.77930674,0.00019178,2]
[368025642,1750997939818,-460.0,0.00019178,2]
[368025643,1750997939840,-702.5,0.00019178,2]
[368025644,1750997939860,-278.74417878,0.00019178,2]
[368025645,1750997940016,-460.0,0.00019178,2]
[368025646,1750997940039,-460.0,0.00019178,2]
[368025647,1750997940062,-460.0,0.00019178,2]
[368025648,1750997940084,-460.0,0.00019178,2]
[368025649,1750997940106,-460.0,0.00019178,2]
[368025650,1750997940128,-460.0,0.00019178,2]
[368025651,1750997940150,-460.0,0.00019178,2]
[368025652,1750997940170,-463.64483651,0.00019178,2]
[368025653,1750997940191,-460.0,0.00019178,2]
[368025654,1750997940214,-460.0,0.00019178,2]
[368025655,1750997940237,-460.0,0.00019178,2]
[368025656,1750997940259,-460.0,0.00019178,2]
[368025657,1750997940280,-755.46,0.00019178,2]
[368025658,1750997940301,-460.0,0.00019178,2]
[368025659,1750997940324,-1720.81,0.00019178,2]
[368025660,1750997940345,-338.08888537,0.00019178,2]
[368025661,1750997940366,-460.0,0.00019178,2]
[368025662,1750997940386,-460.0,0.00019178,2]
[368025663,1750997940407,-460.0,0.00019178,2]
[368025664,1750997940426,-460.0,0.00019178,2]
[368025665,1750997940446,-460.0,0.00019178,2]
[368025666,1750997940467,-460.0,0.00019178,2]
[368025667,1750997940490,-607.44,0.00019178,2]
[368025668,1750997940510,-460.0,0.00019178,2]
[368025669,1750997940532,-637.37,0.00019178,2]
[368025670,1750997940554,-460.98863409,0.00019178,2]
[368025671,1750997940574,-460.0,0.00019178,2]
[368025672,1750997940594,-460.0,0.00019178,2]
[368025673,1750997940616,-505.79,0.00019178,2]
[368025674,1750997940637,-460.0,0.00019178,2]
[368025675,1750997940659,-460.0,0.00019178,2]
[368025676,1750997940681,-460.0,0.00019178,2]
[368025677,1750997940704,-346.95022332,0.00019178,2]
[368025678,1750997940724,-460.0,0.00019178,2]
[368025679,1750997940746,-1118.67,0.00019178,2]
[368025680,1750997940767,-460.0,0.00019178,2]
[368025681,1750997940788,-460.0,0.00019178,2]
[368025682,1750997940808,-460.0,0.00019178,2]
[368025683,1750997940829,-460.0,0.00019178,2]
[368025684,1750997940851,-460.0,0.00019178,2]
[368025685,1750997940871,-460.0,0.00019178,2]
[368025686,1750997940892,-477.07,0.00019178,2]
[368025687,1750997940914,-2288.97,0.00019178,2]
[368025688,1750997940939,-460.0,0.00019178,2]
[368025689,1750997940959,-460.0,0.00019178,2]
[368025690,1750997940980,-460.0,0.00019178,2]
[368025691,1750997941002,-663.47,0.00019178,2]
[368025692,1750997941023,-1275.09,0.00019178,2]
[368025693,1750997941043,-460.0,0.00019178,2]
[368025694,1750997941064,-3456.31,0.00019178,2]
[368025695,1750997941085,-745.98,0.00019178,2]
[368025696,1750997941108,-460.0,0.00019178,2]
[368025697,1750997941129,-3085.69,0.00019178,2]
[368025698,1750997941150,-460.0,0.00019178,2]
[368025699,1750997941171,-460.0,0.00019178,2]
[368025700,1750997941192,-468.67487944,0.00019178,2]
[368025701,1750997941214,-1695.45,0.00019178,2]
[368025702,1750997941235,-672.53,0.00019178,2]
[368025703,1750997941256,-460.0,0.00019178,2]
[368025704,1750997941282,-747.6,0.00019178,2]
[368025705,1750997941305,-460.0,0.00019178,2]
[368025706,1750997941327,-783.26,0.00019178,2]
[368025707,1750997941349,-588.48,0.00019178,2]
[368025708,1750997941371,-2062.29,0.00019178,2]
[368025709,1750997941391,-460.0,0.00019178,2]
[368025710,1750997941415,-460.0,0.00019178,2]
[368025711,1750997941436,-460.0,0.00019178,2]
[368025712,1750997941457,-580.26,0.00019178,2]
[368025713,1750997941478,-482.82,0.00019178,2]
[368025714,1750997941499,-1200.16,0.00019178,2]
[368025715,1750997941519,-460.0,0.00019178,2]
[368025716,1750997941541,-460.0,0.00019178,2]
[368025717,1750997941563,-775.29,0.00019178,2]
[368025718,1750997941584,-460.0,0.00019178,2]
[368025719,1750997941605,-1586.2,0.00019178,2]
[368025720,1750997941626,-460.0,0.00019178,2]
[368025721,1750997941647,-548.37,0.00019178,2]
[368025722,1750997941669,-460.0,0.00019178,2]
[368025723,1750997941691,-1417.41,0.00019178,2]
[368025724,1750997941717,-507.65,0.00019178,2]
[368025725,1750997941742,-12318.79769303,0.00019178,2]
[368025726,1750997941762,-23399.999999,0.000192,16]
[368025727,1750997941788,-182.0,0.00019214,2]
[368025728,1750997941811,-182.0,0.00019269,2]
[368025729,1750997941832,-182.0,0.00019281,2]
[368025730,1750997941854,-182.0,0.00019316,2]
[368025731,1750997941874,-19787.12118898,0.00019329,2]
[368025733,1750997981598,155.05,0.00018,3]
[368025734,1750998098943,251.6162226,0.00024658,120]
[368025739,1750998352481,-222.7212165,0.00018903,2]
[368025740,1750998352504,-80.69422438,0.00018978,2]
[368025742,1750998427143,-163.27575699,0.0001872,2]
[368025743,1750998427164,-222.72121649,0.00018903,2]
[368025744,1750998427185,-28.00302652,0.00018978,2]
[368025752,1750998580213,180.19165089,0.00017907,2]
[368025817,1750998632237,-184.74451645,0.000189,2]
[368025819,1750998632248,-317.66542896,0.00018978,2]
[368025821,1750998632257,-317.66542893,0.00019003,2]
[368025823,1750998632266,-317.66542893,0.00019028,2]
[368025825,1750998632276,-160.0,0.00019049,2]
[368025826,1750998632286,-317.66542893,0.00019053,2]
[368025827,1750998632295,-900.0,0.00019077,2]
[368025829,1750998632305,-2066.58385203,0.00019078,2]
[368025831,1750998632315,-121.29008531,0.00019078,2]
[368025833,1750998632326,-196.37534362,0.00019078,2]
[368025835,1750998632335,-732.77494505,0.00019078,2]
[368025837,1750998632344,-292.79433797,0.00019166,2]
[368025839,1750998632353,-300.0,0.00019177,2]
[368025841,1750998632363,-300.0,0.00019177,2]
[368025843,1750998632372,-1200.0,0.00019177,2]
[368025845,1750998632382,-300.0,0.00019177,2]
[368025847,1750998632391,-460.0,0.00019178,2]
[368025850,1750998632401,-460.0,0.00019178,2]
[368025851,1750998632411,-469.88910191,0.00019178,2]
[368025854,1750998632420,-538.78,0.00019178,2]
[368025856,1750998632430,-460.0,0.00019178,2]
[368025858,1750998632439,-460.0,0.00019178,2]
[368025859,1750998632449,-460.0,0.00019178,2]
[368025861,1750998632461,-460.0,0.00019178,2]
[368025863,1750998632471,-460.0,0.00019178,2]
[368025865,1750998632480,-460.0,0.00019178,2]
[368025867,1750998632489,-460.0,0.00019178,2]
[368025869,1750998632499,-460.0,0.00019178,2]
[368025871,1750998632509,-228.13036512,0.00019178,2]
[368025873,1750998632520,-231.86963488,0.00019178,2]
[368025875,1750998632529,-460.0,0.00019178,2]
[368025877,1750998632539,-460.0,0.00019178,2]
[368025879,1750998632548,-309.8430483,0.00019178,2]
[368025892,1750998638261,-186.75052276,0.00019,2]
[368025893,1750998638271,-205.91250025,0.00019177,2]
[368025894,1750998638280,-500.0,0.00019177,2]
[368025895,1750998638290,-500.0,0.00019177,2]
[368025896,1750998638299,-500.0,0.00019177,2]
[368025897,1750998638308,-500.0,0.00019177,2]
[368025898,1750998638317,-501.9944327,0.00019177,2]
[368025899,1750998638327,-500.0,0.00019177,2]
[368025900,1750998638337,-500.0,0.00019177,2]
[368025901,1750998638346,-500.0,0.00019177,2]
[368025902,1750998638355,-500.0,0.00019177,2]
[368025903,1750998638365,-500.0,0.00019177,2]
[368025904,1750998638374,-500.0,0.00019177,2]
[368025905,1750998638383,-592.17432715,0.00019177,2]
[368025906,1750998638392,-500.0,0.00019177,2]
[368025907,1750998638402,-500.0,0.00019177,2]
[368025908,1750998638411,-175.43554881,0.00019177,2]
[368025909,1750998638420,-500.0,0.00019177,2]
[368025910,1750998638429,-500.0,0.00019177,2]
[368025911,1750998638439,-219.19859052,0.00019177,2]
[368025912,1750998638448,-500.0,0.00019177,2]
[368025913,1750998638457,-500.0,0.00019177,2]
[368025914,1750998638466,-500.0,0.00019177,2]
[368025915,1750998638476,-500.0,0.00019177,2]
[368025916,1750998638485,-439.70833601,0.00019177,2]
[368025917,1750998638495,-500.0,0.00019177,2]
[368025918,1750998638504,-500.0,0.00019177,2]
[368025919,1750998638513,-250.93922939,0.00019177,2]
[368025920,1750998638523,-423.85816638,0.00019177,2]
[368025921,1750998638532,-500.0,0.00019177,2]
[368025922,1750998638541,-500.0,0.00019177,2]
[368025923,1750998638550,-500.0,0.00019177,2]
[368025924,1750998638559,-500.0,0.00019177,2]
[368025925,1750998638568,-500.0,0.00019177,2]
[368025926,1750998638577,-646.1489428,0.00019177,2]
[368025927,1750998638587,-500.0,0.00019177,2]
[368025928,1750998638596,-500.0,0.00019177,2]
[368025929,1750998638606,-500.0,0.00019177,2]
[368025930,1750998638615,-500.0,0.00019177,2]
[368025931,1750998638624,-150.1569517,0.00019178,2]
[368025932,1750998638634,-460.58318263,0.00019178,2]
[368025933,1750998638643,-460.0,0.00019178,2]
[368025934,1750998638652,-460.0,0.00019178,2]
[368025935,1750998638662,-460.0,0.00019178,2]
[368025936,1750998638671,-460.0,0.00019178,2]
[368025937,1750998638680,-460.0,0.00019178,2]
[368025938,1750998638690,-460.48024225,0.00019178,2]
[368025939,1750998638699,-460.0,0.00019178,2]
[368025940,1750998638709,-487.45,0.00019178,2]
[368025941,1750998638718,-460.0,0.00019178,2]
[368025942,1750998638727,-973.65,0.00019178,2]
[368025943,1750998638737,-460.0,0.00019178,2]
[368025944,1750998638746,-307.23620445,0.00019178,2]
[368025945,1750998638755,-460.0,0.00019178,2]
[368025946,1750998638764,-808.06,0.00019178,2]
[368025947,1750998638773,-500.0,0.00019178,2]
[368025948,1750998638782,-500.0,0.00019178,2]
[368025949,1750998638791,-460.0,0.00019178,2]
[368025950,1750998638801,-225.52620187,0.00019178,2]
[368025951,1750998638810,-460.0,0.00019178,2]
[368025952,1750998638820,-460.0,0.00019178,2]
[368025953,1750998638829,-460.0,0.00019178,2]
[368025954,1750998638838,-460.0,0.00019178,2]
[368025955,1750998638847,-466.04091171,0.00019178,2]
[368025956,1750998638857,-460.0,0.00019178,2]
[368025957,1750998638866,-277.62675076,0.00019178,2]
[368025958,1750998638876,-428.12169028,0.00019178,2]
[368025959,1750998638886,-460.0,0.00019178,2]
[368025960,1750998638895,-460.0,0.00019178,2]
[368025961,1750998638904,-460.0,0.00019178,2]
[368025962,1750998638913,-460.0,0.00019178,2]
[368025963,1750998638923,-483.75,0.00019178,2]
[368025964,1750998638932,-460.0,0.00019178,2]
[368025965,1750998638942,-460.0,0.00019178,2]
[368025966,1750998638951,-460.0,0.00019178,2]
[368025967,1750998638960,-151.0,0.00019178,2]
[368025968,1750998638969,-460.0,0.00019178,2]
[368025969,1750998638978,-460.0,0.00019178,2]
[368025970,1750998638987,-460.0,0.00019178,2]
[368025971,1750998638996,-460.0,0.00019178,2]
[368025972,1750998639005,-460.0,0.00019178,2]
[368025973,1750998639015,-460.0,0.00019178,2]
[368025974,1750998639024,-485.22,0.00019178,2]
[368025975,1750998639033,-460.0,0.00019178,2]
[368025976,1750998639041,-710.05,0.00019178,2]
[368025977,1750998639051,-460.0,0.00019178,2]
[368025978,1750998639060,-460.0,0.00019178,2]
[368025979,1750998639069,-489.33,0.00019178,2]
[368025980,1750998639078,-460.0,0.00019178,2]
[368025981,1750998639087,-442.58586527,0.00019178,2]
[368025982,1750998639096,-460.0,0.00019178,2]
[368025983,1750998639106,-460.0,0.00019178,2]
[368025984,1750998639116,-460.0,0.00019178,2]
[368025985,1750998639125,-460.0,0.00019178,2]
[368025986,1750998639134,-460.0,0.00019178,2]
[368025987,1750998639143,-533.06,0.00019178,2]
[368025988,1750998639152,-460.0,0.00019178,2]
[368025989,1750998639161,-460.0,0.00019178,2]
[368025990,1750998639170,-460.0,0.00019178,2]
[368025991,1750998639179,-460.0,0.00019178,2]
[368025992,1750998639188,-460.0,0.00019178,2]
[368025993,1750998639198,-460.0,0.00019178,2]
[368025994,1750998639207,-460.0,0.00019178,2]
[368025995,1750998639216,-1511.68,0.00019178,2]
[368025996,1750998639227,-460.0,0.00019178,2]
[368025997,1750998639237,-460.0,0.00019178,2]
[368025998,1750998639247,-1608.24,0.00019178,2]
[368025999,1750998639256,-1424.67,0.00019178,2]
[368026000,1750998639265,-460.0,0.00019178,2]
[368026001,1750998639274,-504.16,0.00019178,2]
[368026002,1750998639283,-460.0,0.00019178,2]
[368026003,1750998639292,-460.0,0.00019178,2]
[368026004,1750998639302,-2130.67,0.00019178,2]
[368026005,1750998639313,-500.0,0.00019178,2]
[368026006,1750998639323,-460.0,0.00019178,2]
[368026007,1750998639332,-460.0,0.00019178,2]
[368026008,1750998639342,-760.85,0.00019178,2]
[368026009,1750998639351,-502.08,0.00019178,2]
[368026010,1750998639361,-460.0,0.00019178,2]
[368026011,1750998639372,-1072.28,0.00019178,2]
[368026012,1750998639383,-460.0,0.00019178,2]
[368026013,1750998639392,-460.0,0.00019178,2]
[368026014,1750998639401,-460.46552253,0.00019178,2]
[368026015,1750998639410,-1995.74,0.00019178,2]
[368026016,1750998639420,-460.0,0.00019178,2]
[368026017,1750998639433,-732.39,0.00019178,2]
[368026018,1750998639445,-460.0,0.00019178,2]
[368026019,1750998639458,-460.0,0.00019178,2]
[368026020,1750998639471,-800.65,0.00019178,2]
[368026021,1750998639482,-460.0,0.00019178,2]
[368026022,1750998639495,-460.0,0.00019178,2]
[368026023,1750998639505,-632.16,0.00019178,2]
[368026024,1750998639516,-460.0,0.00019178,2]
[368026025,1750998639528,-500.0,0.00019178,2]
[368026026,1750998639539,-503.89,0.00019178,2]
[368026027,1750998639551,-460.0,0.00019178,2]
[368026028,1750998639563,-460.0,0.00019178,2]
[368026029,1750998639574,-1851.97,0.00019178,2]
[368026030,1750998639586,-460.0,0.00019178,2]
[368026031,1750998639598,-460.0,0.00019178,2]
[368026032,1750998639610,-460.0,0.00019178,2]
[368026033,1750998639622,-417.8070118,0.00019178,2]
[368026034,1750998639634,-2270.26,0.00019178,2]
[368026035,1750998639646,-460.0,0.00019178,2]
[368026036,1750998639658,-460.0,0.00019178,2]
[368026037,1750998639670,-547.77,0.00019178,2]
[368026038,1750998639681,-1302.05,0.00019178,2]
[368026039,1750998639693,-460.0,0.00019178,2]
[368026040,1750998639704,-668.03,0.00019178,2]
[368026041,1750998639715,-476.1,0.00019178,2]
[368026042,1750998639726,-460.0,0.00019178,2]
[368026043,1750998639738,-520.94,0.00019178,2]
[368026044,1750998639750,-460.0,0.00019178,2]
[368026045,1750998639764,-460.0,0.00019178,2]
[368026047,1750998639775,-460.0,0.00019178,2]
[368026048,1750998639787,-1451.96,0.00019178,2]
[368026049,1750998639798,-460.0,0.00019178,2]
[368026050,1750998639809,-460.0,0.00019178,2]
[368026051,1750998639820,-460.0,0.00019178,2]
[368026052,1750998639830,-460.0,0.00019178,2]
[368026053,1750998639841,-460.0,0.00019178,2]
[368026054,1750998639851,-460.0,0.00019178,2]
[368026056,1750998639862,-3544.22,0.00019178,2]
[368026058,1750998639873,-3191.64,0.00019178,2]
[368026060,1750998639884,-602.3,0.00019178,2]
[368026062,1750998639895,-460.0,0.00019178,2]
[368026063,1750998639907,-799.69,0.00019178,2]
[368026064,1750998639917,-460.0,0.00019178,2]
[368026065,1750998639929,-2058.5,0.00019178,2]
[368026066,1750998639940,-460.0,0.00019178,2]
[368026067,1750998639951,-598.11,0.00019178,2]
[368026068,1750998639963,-980.63,0.00019178,2]
[368026069,1750998639974,-460.0,0.00019178,2]
[368026070,1750998639986,-720.16,0.00019178,2]
[368026072,1750998639998,-751.76,0.00019178,2]
[368026074,1750998640009,-1701.47,0.00019178,2]
[368026076,1750998640021,-460.0,0.00019178,2]
[368026078,1750998640031,-460.0,0.00019178,2]
[368026080,1750998640040,-460.0,0.00019178,2]
[368026082,1750998640051,-934.13,0.00019178,2]
[368026084,1750998640060,-267.84328271,0.00019178,2]
[368026086,1750998640071,-1440.16,0.00019178,2]
[368026088,1750998640080,-3586.85606933,0.00019178,2]
[368026090,1750998640090,-283.56,0.00019319,3]
[368026092,1750998640102,-850.68,0.00019319,3]
[368026094,1750998640114,-80212.87881102,0.00019329,2]
[368026096,1750998640126,-253.37301939,0.00019352,2]
[368026098,1750998640137,-182.0,0.00019372,2]
[368026100,1750998640148,-460.0,0.00019452,2]
[368026102,1750998640158,-460.0,0.00019452,2]
[368026104,1750998640168,-460.0,0.00019452,2]
[368026107,1750998640179,-468.30560703,0.00019452,2]
[368026109,1750998640189,-460.0,0.00019452,2]
[368026111,1750998640200,-460.0,0.00019452,2]
[368026113,1750998640212,-460.0,0.00019452,2]
[368026115,1750998640222,-538.78,0.00019452,2]
[368026117,1750998640232,-460.0,0.00019452,2]
[368026119,1750998640245,-261.12962635,0.00019452,2]
[368026121,1750998640255,-460.0,0.00019452,2]
[368026123,1750998640265,-460.0,0.00019452,2]
[368026125,1750998640275,-460.0,0.00019452,2]
[368026127,1750998640286,-460.0,0.00019452,2]
[368026129,1750998640296,-460.0,0.00019452,2]
[368026131,1750998640306,-576.52902155,0.00019452,2]
[368026133,1750998640316,-460.0,0.00019452,2]
[368026135,1750998640327,-973.65,0.00019452,2]
[368026137,1750998640339,-808.06,0.00019452,2]
[368026139,1750998640350,-460.0,0.00019452,2]
[368026141,1750998640361,-460.0,0.00019452,2]
[368026143,1750998640371,-460.0,0.00019452,2]
[368026145,1750998640381,-460.0,0.00019452,2]
[368026147,1750998640392,-460.0,0.00019452,2]
[368026149,1750998640402,-460.0,0.00019452,2]
[368026152,1750998640414,-460.0,0.00019452,2]
[368026154,1750998640424,-460.0,0.00019452,2]
[368026156,1750998640434,-460.0,0.00019452,2]
[368026158,1750998640445,-483.75,0.00019452,2]
[368026160,1750998640455,-460.0,0.00019452,2]
[368026162,1750998640466,-460.0,0.00019452,2]
[368026164,1750998640476,-460.0,0.00019452,2]
[368026166,1750998640487,-460.0,0.00019452,2]
[368026168,1750998640497,-460.0,0.00019452,2]
[368026170,1750998640507,-460.0,0.00019452,2]
[368026172,1750998640517,-460.0,0.00019452,2]
[368026174,1750998640528,-485.22,0.00019452,2]
[368026175,1750998640538,-430.36,0.00019452,2]
[368026176,1750998640548,-710.05,0.00019452,2]
[368026177,1750998640558,-460.0,0.00019452,2]
[368026178,1750998640568,-489.33,0.00019452,2]
[368026179,1750998640578,-460.0,0.00019452,2]
[368026180,1750998640589,-460.0,0.00019452,2]
[368026181,1750998640599,-460.0,0.00019452,2]
[368026182,1750998640609,-460.0,0.00019452,2]
[368026183,1750998640620,-533.06,0.00019452,2]
[368026184,1750998640630,-460.0,0.00019452,2]
[368026185,1750998640641,-460.0,0.00019452,2]
[368026186,1750998640651,-460.0,0.00019452,2]
[368026187,1750998640662,-460.0,0.00019452,2]
[368026188,1750998640672,-460.0,0.00019452,2]
[368026189,1750998640683,-460.0,0.00019452,2]
[368026190,1750998640693,-1511.68,0.00019452,2]
[368026191,1750998640704,-460.0,0.00019452,2]
[368026192,1750998640714,-460.0,0.00019452,2]
[368026193,1750998640726,-1608.24,0.00019452,2]
[368026194,1750998640736,-1424.67,0.00019452,2]
[368026195,1750998640747,-460.0,0.00019452,2]
[368026196,1750998640758,-504.16,0.00019452,2]
[368026197,1750998640768,-460.0,0.00019452,2]
[368026198,1750998640779,-460.0,0.00019452,2]
[368026199,1750998640790,-2130.67,0.00019452,2]
[368026201,1750998640800,-460.0,0.00019452,2]
[368026204,1750998640811,-460.0,0.00019452,2]
[368026206,1750998640821,-760.85,0.00019452,2]
[368026208,1750998640831,-1072.28,0.00019452,2]